[Event "*** SCC Grand Prix: Titled Tuesday Blitz"]
[Site "Chess.com"]
[Date "2020.06.09"]
[Round "5"]
[White "mamonika"]
[Black "Saloni1299"]
[Result "0-1"]
[WhiteElo "1926"]
[BlackElo "2253"]
[TimeControl "180+1"]
[EndTime "9:55:06 PDT"]
[Termination "Saloni1299 won on time"]

1. e4 {[%clk 0:03:00.9]} 1... e6 {[%clk 0:02:59.7]} 2. d4 {[%clk 0:03:00.7]}
2... d5 {[%clk 0:02:59.6]} 3. Nd2 {[%clk 0:03:01.1]} 3... Nf6 {[%clk 0:02:59.2]}
4. e5 {[%clk 0:02:57.4]} 4... Nfd7 {[%clk 0:02:59.2]} 5. Bd3 {[%clk 0:02:48.6]}
5... c5 {[%clk 0:02:58.7]} 6. c3 {[%clk 0:02:49.1]} 6... Nc6 {[%clk 0:02:57.6]}
7. Ne2 {[%clk 0:02:49.3]} 7... cxd4 {[%clk 0:02:53.8]} 8. cxd4 {[%clk
0:02:49.2]} 8... f6 {[%clk 0:02:53.9]} 9. exf6 {[%clk 0:02:48.8]} 9... Nxf6
{[%clk 0:02:54.8]} 10. Nf3 {[%clk 0:02:45]} 10... Bd6 {[%clk 0:02:55.1]} 11. O-O
{[%clk 0:02:44.4]} 11... Qc7 {[%clk 0:02:54.3]} 12. Re1 {[%clk 0:02:33]} 12...
O-O {[%clk 0:02:53.7]} 13. a3 {[%clk 0:02:12]} 13... e5 {[%clk 0:02:40.8]} 14.
dxe5 {[%clk 0:02:10.3]} 14... Nxe5 {[%clk 0:02:33.3]} 15. Nxe5 {[%clk
0:01:58.1]} 15... Bxe5 {[%clk 0:02:34.2]} 16. Ng3 {[%clk 0:01:58]} 16... Bg4
{[%clk 0:02:31.4]} 17. Qb3 {[%clk 0:01:52.4]} 17... Kh8 {[%clk 0:02:18.3]} 18.
Bg5 {[%clk 0:01:41.5]} 18... Rad8 {[%clk 0:02:17.3]} 19. Rac1 {[%clk 0:01:39.5]}
19... Qb8 {[%clk 0:02:17.3]} 20. Bb1 {[%clk 0:01:18]} 20... Bf4 {[%clk
0:02:14.1]} 21. Bxf4 {[%clk 0:00:55.2]} 21... Qxf4 {[%clk 0:02:13.9]} 22. Qxb7
{[%clk 0:00:45.4]} 22... Ne4 {[%clk 0:02:13.4]} 23. Nxe4 {[%clk 0:00:38.8]}
23... dxe4 {[%clk 0:02:11.3]} 24. Qxe4 {[%clk 0:00:32.2]} 24... Qxf2+ {[%clk
0:02:08.9]} 25. Kh1 {[%clk 0:00:32.3]} 25... Bf5 {[%clk 0:02:06]} 26. Qe2 {[%clk
0:00:14.9]} 26... Bxb1 {[%clk 0:01:52.6]} 27. Qxf2 {[%clk 0:00:09.5]} 27... Rxf2
{[%clk 0:01:53.5]} 28. Rxb1 {[%clk 0:00:09.8]} 28... h5 {[%clk 0:01:54.1]} 29.
Rf1 {[%clk 0:00:06.5]} 29... Re2 {[%clk 0:01:52.4]} 30. Rfe1 {[%clk 0:00:04]}
30... Red2 {[%clk 0:01:49.3]} 31. b4 {[%clk 0:00:03]} 31... R8d3 {[%clk
0:01:47.4]} 32. a4 {[%clk 0:00:02.5]} 32... Ra3 {[%clk 0:01:47.3]} 33. a5 {[%clk
0:00:02.7]} 33... Raa2 {[%clk 0:01:47.2]} 0-1

[Event "*** SCC Grand Prix: Titled Tuesday Blitz"]
[Site "Chess.com"]
[Date "2020.06.09"]
[Round "5"]
[White "Zavgorodniy_Serg"]
[Black "LiemLe"]
[Result "0-1"]
[WhiteElo "2650"]
[BlackElo "2904"]
[TimeControl "180+1"]
[EndTime "9:55:11 PDT"]
[Termination "LiemLe won on time"]

1. e4 {[%clk 0:01:33.5]} 1... c6 {[%clk 0:02:58.7]} 2. d4 {[%clk 0:01:32.8]}
2... d5 {[%clk 0:02:59.6]} 3. exd5 {[%clk 0:01:33.3]} 3... cxd5 {[%clk
0:03:00.3]} 4. c4 {[%clk 0:01:33.6]} 4... Nf6 {[%clk 0:03:00.4]} 5. Nc3 {[%clk
0:01:33.4]} 5... e6 {[%clk 0:03:00.1]} 6. Nf3 {[%clk 0:01:31.2]} 6... Be7 {[%clk
0:03:00.3]} 7. cxd5 {[%clk 0:01:31.2]} 7... Nxd5 {[%clk 0:03:01.2]} 8. Bd3
{[%clk 0:01:31.3]} 8... Nxc3 {[%clk 0:02:56]} 9. bxc3 {[%clk 0:01:30.9]} 9...
Qc7 {[%clk 0:02:56.9]} 10. Bd2 {[%clk 0:01:29]} 10... Nd7 {[%clk 0:02:54.9]} 11.
O-O {[%clk 0:01:28.6]} 11... b6 {[%clk 0:02:53.2]} 12. Re1 {[%clk 0:01:21.3]}
12... Bb7 {[%clk 0:02:52.6]} 13. Qe2 {[%clk 0:00:59.1]} 13... h6 {[%clk
0:02:46.9]} 14. Bc2 {[%clk 0:00:50.5]} 14... Rc8 {[%clk 0:02:38.9]} 15. Rac1
{[%clk 0:00:34.2]} 15... Bd5 {[%clk 0:02:21.8]} 16. Bb1 {[%clk 0:00:33.5]} 16...
Qc6 {[%clk 0:02:06.6]} 17. Ne5 {[%clk 0:00:29.1]} 17... Nxe5 {[%clk 0:02:06.2]}
18. Qxe5 {[%clk 0:00:30]} 18... O-O {[%clk 0:01:54.8]} 19. Bxh6 {[%clk 0:00:22]}
19... gxh6 {[%clk 0:01:43.5]} 20. Re3 {[%clk 0:00:21.9]} 20... Bg5 {[%clk
0:01:36.4]} 21. Rg3 {[%clk 0:00:13.3]} 21... f6 {[%clk 0:01:36.5]} 22. Qe2
{[%clk 0:00:13.3]} 22... Kf7 {[%clk 0:01:33.1]} 23. Re1 {[%clk 0:00:11.6]} 23...
Ke7 {[%clk 0:01:25.6]} 24. h4 {[%clk 0:00:07.2]} 24... Bxh4 {[%clk 0:01:23.4]}
25. Rg7+ {[%clk 0:00:07.2]} 25... Kd8 {[%clk 0:01:24]} 26. Qh5 {[%clk 0:00:05]}
26... Bg5 {[%clk 0:01:23.8]} 27. Qg6 {[%clk 0:00:04.4]} 27... Rc7 {[%clk
0:01:22.6]} 0-1

[Event "*** SCC Grand Prix: Titled Tuesday Blitz"]
[Site "Chess.com"]
[Date "2020.06.09"]
[Round "5"]
[White "Oneofmyturns"]
[Black "eCztery"]
[Result "1-0"]
[WhiteElo "2572"]
[BlackElo "2406"]
[TimeControl "180+1"]
[EndTime "9:55:15 PDT"]
[Termination "Oneofmyturns won by checkmate"]

1. d4 {[%clk 0:03:00.9]} 1... d5 {[%clk 0:02:32.5]} 2. c4 {[%clk 0:02:59.8]}
2... e6 {[%clk 0:02:29.2]} 3. Nc3 {[%clk 0:02:59.2]} 3... Nf6 {[%clk 0:02:29.2]}
4. cxd5 {[%clk 0:02:59.7]} 4... exd5 {[%clk 0:02:27.8]} 5. Bg5 {[%clk
0:03:00.1]} 5... Be7 {[%clk 0:02:25.7]} 6. e3 {[%clk 0:03:00]} 6... O-O {[%clk
0:02:24.1]} 7. Bd3 {[%clk 0:02:59.9]} 7... c5 {[%clk 0:02:23.3]} 8. Nf3 {[%clk
0:02:54.8]} 8... cxd4 {[%clk 0:02:15.1]} 9. Nxd4 {[%clk 0:02:54.1]} 9... h6
{[%clk 0:02:14.3]} 10. Bf4 {[%clk 0:02:51.2]} 10... Nc6 {[%clk 0:02:14.6]} 11.
Nf5 {[%clk 0:02:50.5]} 11... Nb4 {[%clk 0:02:03.1]} 12. O-O {[%clk 0:02:46.7]}
12... Nxd3 {[%clk 0:02:01.9]} 13. Qxd3 {[%clk 0:02:47.6]} 13... Be6 {[%clk
0:01:34.8]} 14. Rfd1 {[%clk 0:02:44.7]} 14... Qd7 {[%clk 0:01:23.9]} 15. Nxe7+
{[%clk 0:02:43.8]} 15... Qxe7 {[%clk 0:01:24.8]} 16. Rac1 {[%clk 0:02:33.8]}
16... a6 {[%clk 0:01:24.5]} 17. Qd4 {[%clk 0:02:32.6]} 17... Rac8 {[%clk
0:01:22.1]} 18. Na4 {[%clk 0:02:25.7]} 18... Rc4 {[%clk 0:01:08.9]} 19. Rxc4
{[%clk 0:02:22.9]} 19... dxc4 {[%clk 0:01:09.8]} 20. Bd6 {[%clk 0:02:23.1]}
20... Qe8 {[%clk 0:01:07.5]} 21. Nc5 {[%clk 0:02:21.3]} 21... Bg4 {[%clk
0:00:54]} 22. f3 {[%clk 0:02:16.7]} 22... b6 {[%clk 0:00:28.6]} 23. Nxa6 {[%clk
0:02:04.5]} 23... Qa4 {[%clk 0:00:23.4]} 24. Bxf8 {[%clk 0:02:00.7]} 24... Kxf8
{[%clk 0:00:20.2]} 25. fxg4 {[%clk 0:01:24.5]} 25... Qxa6 {[%clk 0:00:20]} 26.
Qd8+ {[%clk 0:01:25]} 26... Ne8 {[%clk 0:00:20.4]} 27. Rd7 {[%clk 0:01:25.3]}
27... Qa5 {[%clk 0:00:11.9]} 28. Qe7+ {[%clk 0:01:20.6]} 28... Kg8 {[%clk
0:00:12.5]} 29. Qxe8+ {[%clk 0:01:21]} 29... Kh7 {[%clk 0:00:13.1]} 30. Qe4+
{[%clk 0:01:21.1]} 30... g6 {[%clk 0:00:10.9]} 31. Rxf7+ {[%clk 0:01:20.5]}
31... Kh8 {[%clk 0:00:10.9]} 32. Qe8# {[%clk 0:01:20.6]} 1-0

[Event "*** SCC Grand Prix: Titled Tuesday Blitz"]
[Site "Chess.com"]
[Date "2020.06.09"]
[Round "5"]
[White "Harry_Rakkel"]
[Black "CookiesAndIceCream"]
[Result "0-1"]
[WhiteElo "2501"]
[BlackElo "2338"]
[TimeControl "180+1"]
[EndTime "9:55:16 PDT"]
[Termination "CookiesAndIceCream won by resignation"]

1. d4 {[%clk 0:03:00.7]} 1... d5 {[%clk 0:02:59.5]} 2. c4 {[%clk 0:03:00.1]}
2... c6 {[%clk 0:02:59.6]} 3. cxd5 {[%clk 0:02:59.8]} 3... cxd5 {[%clk
0:02:58.8]} 4. Nc3 {[%clk 0:03:00.3]} 4... Nf6 {[%clk 0:02:58.9]} 5. Nf3 {[%clk
0:03:00.6]} 5... Nc6 {[%clk 0:02:59.2]} 6. Bf4 {[%clk 0:03:00.3]} 6... Bf5
{[%clk 0:02:57.2]} 7. e3 {[%clk 0:02:59.4]} 7... e6 {[%clk 0:02:57.2]} 8. Bb5
{[%clk 0:02:58.2]} 8... Nd7 {[%clk 0:02:56.8]} 9. O-O {[%clk 0:02:56.3]} 9...
Be7 {[%clk 0:02:56.9]} 10. Rc1 {[%clk 0:02:51.2]} 10... Rc8 {[%clk 0:02:52.4]}
11. Bd3 {[%clk 0:02:35.8]} 11... Bxd3 {[%clk 0:02:41.5]} 12. Qxd3 {[%clk
0:02:34.7]} 12... O-O {[%clk 0:02:40.9]} 13. h3 {[%clk 0:02:27.9]} 13... Nb6
{[%clk 0:02:34.3]} 14. Nd2 {[%clk 0:02:25.1]} 14... Na5 {[%clk 0:02:25.1]} 15.
b3 {[%clk 0:02:21.3]} 15... Nc6 {[%clk 0:02:20.5]} 16. Ne2 {[%clk 0:02:13.9]}
16... Ba3 {[%clk 0:02:17.8]} 17. Rcd1 {[%clk 0:02:05.8]} 17... Nb4 {[%clk
0:02:13.4]} 18. Qb1 {[%clk 0:02:00.2]} 18... Rc2 {[%clk 0:02:10.9]} 19. Nf3
{[%clk 0:01:52.7]} 19... Rxe2 {[%clk 0:02:09.2]} 20. Rd2 {[%clk 0:01:14.1]}
20... Rxd2 {[%clk 0:01:59.3]} 21. Nxd2 {[%clk 0:01:15]} 21... Qd7 {[%clk
0:01:59.4]} 22. Nf3 {[%clk 0:01:14]} 22... Rc8 {[%clk 0:01:58.8]} 23. Ne5 {[%clk
0:01:08.6]} 23... Qb5 {[%clk 0:01:57.7]} 24. Qd1 {[%clk 0:01:09.5]} 24... f6
{[%clk 0:01:51.4]} 25. Qg4 {[%clk 0:01:06.2]} 25... Qe8 {[%clk 0:01:51.1]} 26.
Nf3 {[%clk 0:01:03.8]} 26... Nd3 {[%clk 0:01:44.1]} 27. Bh6 {[%clk 0:01:01.8]}
27... Bf8 {[%clk 0:01:38.9]} 28. Rd1 {[%clk 0:00:58.4]} 28... Nb4 {[%clk
0:01:22.7]} 29. a3 {[%clk 0:00:56.8]} 29... Nc6 {[%clk 0:01:21.9]} 30. b4 {[%clk
0:00:52.4]} 30... f5 {[%clk 0:01:12.9]} 31. Qg3 {[%clk 0:00:50.8]} 31... Qg6
{[%clk 0:01:12.7]} 32. Bg5 {[%clk 0:00:49.9]} 32... h6 {[%clk 0:01:12]} 33. b5
{[%clk 0:00:49]} 33... Na5 {[%clk 0:01:09.9]} 34. h4 {[%clk 0:00:37.5]} 34...
hxg5 {[%clk 0:01:09.4]} 35. Nxg5 {[%clk 0:00:35.5]} 35... Be7 {[%clk 0:01:04]}
0-1

[Event "*** SCC Grand Prix: Titled Tuesday Blitz"]
[Site "Chess.com"]
[Date "2020.06.09"]
[Round "5"]
[White "j_coca"]
[Black "guillembaches"]
[Result "1/2-1/2"]
[WhiteElo "2210"]
[BlackElo "2480"]
[TimeControl "180+1"]
[EndTime "9:55:19 PDT"]
[Termination "Game drawn by agreement"]

1. f4 {[%clk 0:03:00.9]} 1... g6 {[%clk 0:02:58.1]} 2. Nf3 {[%clk 0:02:50]} 2...
Bg7 {[%clk 0:02:58.2]} 3. g3 {[%clk 0:02:49.8]} 3... d5 {[%clk 0:02:57.9]} 4.
Bg2 {[%clk 0:02:50.2]} 4... Nf6 {[%clk 0:02:56.3]} 5. O-O {[%clk 0:02:50.4]}
5... O-O {[%clk 0:02:56.5]} 6. c3 {[%clk 0:02:50.6]} 6... c5 {[%clk 0:02:55.6]}
7. d3 {[%clk 0:02:49.1]} 7... d4 {[%clk 0:02:55.4]} 8. e4 {[%clk 0:02:45.5]}
8... dxe3 {[%clk 0:02:53.1]} 9. Bxe3 {[%clk 0:02:45.3]} 9... Qc7 {[%clk
0:02:44.6]} 10. Nbd2 {[%clk 0:02:42.1]} 10... Rd8 {[%clk 0:02:40.3]} 11. Qe2
{[%clk 0:02:41.6]} 11... Bf5 {[%clk 0:02:34]} 12. d4 {[%clk 0:02:39.9]} 12...
Nbd7 {[%clk 0:02:14.4]} 13. Nb3 {[%clk 0:02:32]} 13... c4 {[%clk 0:02:07.7]} 14.
Nc1 {[%clk 0:02:31.7]} 14... Nd5 {[%clk 0:02:03.3]} 15. Bd2 {[%clk 0:02:30.2]}
15... N7f6 {[%clk 0:01:53.6]} 16. Ne5 {[%clk 0:02:29.8]} 16... b5 {[%clk
0:01:49.6]} 17. g4 {[%clk 0:02:15.8]} 17... Bc8 {[%clk 0:01:49.1]} 18. g5 {[%clk
0:02:08.4]} 18... Ne8 {[%clk 0:01:44]} 19. a4 {[%clk 0:02:08]} 19... Rb8 {[%clk
0:01:31.6]} 20. axb5 {[%clk 0:02:07.5]} 20... Rxb5 {[%clk 0:01:32]} 21. Qxc4
{[%clk 0:01:57]} 21... Rxb2 {[%clk 0:01:26.4]} 22. Qxc7 {[%clk 0:01:54.3]} 22...
Nexc7 {[%clk 0:01:22.4]} 23. Rf2 {[%clk 0:01:47.5]} 23... a6 {[%clk 0:00:52.8]}
24. Ncd3 {[%clk 0:01:38.7]} 24... Rxd2 {[%clk 0:00:45.8]} 25. Rxd2 {[%clk
0:01:36.9]} 25... Nxc3 {[%clk 0:00:46.1]} 1/2-1/2

[Event "*** SCC Grand Prix: Titled Tuesday Blitz"]
[Site "Chess.com"]
[Date "2020.06.09"]
[Round "5"]
[White "kuban1991"]
[Black "DrKozerov"]
[Result "1-0"]
[WhiteElo "2783"]
[BlackElo "2595"]
[TimeControl "180+1"]
[EndTime "9:55:25 PDT"]
[Termination "kuban1991 won by checkmate"]

1. Nf3 {[%clk 0:03:00.9]} 1... Nf6 {[%clk 0:02:59.7]} 2. g3 {[%clk 0:03:00.7]}
2... b6 {[%clk 0:02:57.6]} 3. Bg2 {[%clk 0:03:01.6]} 3... Bb7 {[%clk 0:02:58.2]}
4. O-O {[%clk 0:03:01.7]} 4... g6 {[%clk 0:02:58.8]} 5. d3 {[%clk 0:03:01.7]}
5... Bg7 {[%clk 0:02:59.4]} 6. Nbd2 {[%clk 0:03:02.2]} 6... O-O {[%clk
0:02:59.9]} 7. e4 {[%clk 0:03:00]} 7... c5 {[%clk 0:03:00.1]} 8. a4 {[%clk
0:02:59.2]} 8... d5 {[%clk 0:02:59.3]} 9. a5 {[%clk 0:02:52.5]} 9... dxe4 {[%clk
0:02:49.8]} 10. Ng5 {[%clk 0:02:52.3]} 10... Nbd7 {[%clk 0:02:47]} 11. Ngxe4
{[%clk 0:02:48.4]} 11... Nxe4 {[%clk 0:02:44.8]} 12. Nxe4 {[%clk 0:02:49.3]}
12... Qc7 {[%clk 0:02:43.2]} 13. Bf4 {[%clk 0:02:38.4]} 13... e5 {[%clk
0:02:39.2]} 14. Bd2 {[%clk 0:02:35.7]} 14... h6 {[%clk 0:02:35.3]} 15. Bc3
{[%clk 0:02:33.9]} 15... f5 {[%clk 0:02:32.9]} 16. Nd2 {[%clk 0:02:34]} 16...
Bxg2 {[%clk 0:02:32]} 17. Kxg2 {[%clk 0:02:34.9]} 17... Qc6+ {[%clk 0:02:24.1]}
18. Qf3 {[%clk 0:02:30.3]} 18... Qxf3+ {[%clk 0:02:21.8]} 19. Nxf3 {[%clk
0:02:08.7]} 19... e4 {[%clk 0:02:14.4]} 20. dxe4 {[%clk 0:02:06.4]} 20... Bxc3
{[%clk 0:02:13.1]} 21. bxc3 {[%clk 0:02:07.3]} 21... fxe4 {[%clk 0:02:13.2]} 22.
Nd2 {[%clk 0:02:06]} 22... Nf6 {[%clk 0:02:10.5]} 23. Rfe1 {[%clk 0:02:01.3]}
23... Rae8 {[%clk 0:02:09.7]} 24. axb6 {[%clk 0:01:47.8]} 24... axb6 {[%clk
0:02:10.6]} 25. Ra6 {[%clk 0:01:42.9]} 25... Re6 {[%clk 0:01:55.6]} 26. h3
{[%clk 0:01:32.2]} 26... Rd8 {[%clk 0:01:43.6]} 27. Nf1 {[%clk 0:01:15.4]} 27...
Nd5 {[%clk 0:01:36.8]} 28. Ra3 {[%clk 0:01:13.5]} 28... Kf7 {[%clk 0:01:27.5]}
29. c4 {[%clk 0:01:12.6]} 29... Nb4 {[%clk 0:01:22.9]} 30. Re2 {[%clk
0:01:09.4]} 30... Rd1 {[%clk 0:01:15.1]} 31. Ne3 {[%clk 0:01:08.9]} 31... Rc1
{[%clk 0:01:13.1]} 32. Ra7+ {[%clk 0:01:08.9]} 32... Kf6 {[%clk 0:01:11.1]} 33.
Ng4+ {[%clk 0:00:46.9]} 33... Kg5 {[%clk 0:01:10.4]} 34. Rf7 {[%clk 0:00:46.4]}
34... h5 {[%clk 0:00:45.3]} 35. h4+ {[%clk 0:00:44.9]} 35... Kxg4 {[%clk
0:00:44.9]} 36. Rf4# {[%clk 0:00:45.8]} 1-0

[Event "*** SCC Grand Prix: Titled Tuesday Blitz"]
[Site "Chess.com"]
[Date "2020.06.09"]
[Round "5"]
[White "tamarozi99"]
[Black "Boninknights"]
[Result "1-0"]
[WhiteElo "2055"]
[BlackElo "2330"]
[TimeControl "180+1"]
[EndTime "9:55:25 PDT"]
[Termination "tamarozi99 won by resignation"]

1. e4 {[%clk 0:03:00.9]} 1... Nc6 {[%clk 0:02:56]} 2. d4 {[%clk 0:02:56.7]} 2...
e5 {[%clk 0:02:55]} 3. d5 {[%clk 0:02:54.6]} 3... Nce7 {[%clk 0:02:53.5]} 4. Nf3
{[%clk 0:02:54.6]} 4... Ng6 {[%clk 0:02:51.2]} 5. c4 {[%clk 0:02:51.7]} 5... Nf6
{[%clk 0:02:49.4]} 6. Nc3 {[%clk 0:02:50.7]} 6... Bc5 {[%clk 0:02:42.8]} 7. h3
{[%clk 0:02:37.5]} 7... O-O {[%clk 0:02:37.7]} 8. Bd3 {[%clk 0:02:29.3]} 8... d6
{[%clk 0:02:35.1]} 9. a3 {[%clk 0:02:24.9]} 9... a6 {[%clk 0:02:30.2]} 10. g4
{[%clk 0:02:09.7]} 10... Nf4 {[%clk 0:02:08]} 11. Bxf4 {[%clk 0:02:02.4]} 11...
exf4 {[%clk 0:02:07.7]} 12. Qd2 {[%clk 0:01:53.8]} 12... Nd7 {[%clk 0:02:00.4]}
13. Qxf4 {[%clk 0:01:48.1]} 13... Re8 {[%clk 0:01:52.5]} 14. O-O-O {[%clk
0:01:17]} 14... Bxf2 {[%clk 0:01:38.7]} 15. Rdf1 {[%clk 0:00:41.5]} 15... Bb6
{[%clk 0:01:18]} 16. e5 {[%clk 0:00:26.9]} 16... dxe5 {[%clk 0:01:10.4]} 17.
Bxh7+ {[%clk 0:00:19.7]} 17... Kf8 {[%clk 0:00:49.4]} 18. Qxf7+ {[%clk
0:00:10.8]} 18... Kxf7 {[%clk 0:00:48]} 19. Ng5+ {[%clk 0:00:10.6]} 19... Ke7
{[%clk 0:00:45.8]} 20. Rf7+ {[%clk 0:00:10.3]} 1-0

[Event "*** SCC Grand Prix: Titled Tuesday Blitz"]
[Site "Chess.com"]
[Date "2020.06.09"]
[Round "5"]
[White "savagemedusa"]
[Black "WeAintSurePal"]
[Result "0-1"]
[WhiteElo "2027"]
[BlackElo "2282"]
[TimeControl "180+1"]
[EndTime "9:55:26 PDT"]
[Termination "WeAintSurePal won by resignation"]

1. d4 {[%clk 0:02:41.3]} 1... d5 {[%clk 0:02:57]} 2. c4 {[%clk 0:02:24.1]} 2...
c6 {[%clk 0:02:57.9]} 3. Nf3 {[%clk 0:02:22.5]} 3... Nf6 {[%clk 0:02:57]} 4. Qc2
{[%clk 0:02:22.3]} 4... a6 {[%clk 0:02:53.9]} 5. Bf4 {[%clk 0:02:12.9]} 5... g6
{[%clk 0:02:42.9]} 6. e3 {[%clk 0:01:53.8]} 6... Bg7 {[%clk 0:02:34.8]} 7. Bd3
{[%clk 0:01:50.1]} 7... O-O {[%clk 0:02:34.9]} 8. O-O {[%clk 0:01:34.3]} 8... b5
{[%clk 0:02:33.5]} 9. c5 {[%clk 0:01:33.4]} 9... Nbd7 {[%clk 0:02:29.2]} 10. Nc3
{[%clk 0:01:30.9]} 10... Nh5 {[%clk 0:02:25.8]} 11. Bg3 {[%clk 0:01:26]} 11...
Nxg3 {[%clk 0:02:24.9]} 12. hxg3 {[%clk 0:01:25.6]} 12... e5 {[%clk 0:02:25.1]}
13. dxe5 {[%clk 0:01:24.9]} 13... Nxe5 {[%clk 0:02:26]} 14. Nd4 {[%clk
0:01:24.3]} 14... Nxd3 {[%clk 0:02:25.3]} 15. Qxd3 {[%clk 0:01:24.1]} 15... Bd7
{[%clk 0:02:25.6]} 16. b4 {[%clk 0:01:23]} 16... a5 {[%clk 0:02:24.4]} 17. a3
{[%clk 0:01:22.5]} 17... Qe7 {[%clk 0:02:23.4]} 18. Nce2 {[%clk 0:01:10.2]}
18... h5 {[%clk 0:02:18]} 19. Nf4 {[%clk 0:01:01.3]} 19... h4 {[%clk 0:02:16]}
20. gxh4 {[%clk 0:00:58.4]} 20... Qxh4 {[%clk 0:02:16.9]} 21. g3 {[%clk
0:00:56.9]} 21... Qe7 {[%clk 0:02:16.5]} 22. Kg2 {[%clk 0:00:56.7]} 22... Rfe8
{[%clk 0:02:15.1]} 23. Rh1 {[%clk 0:00:56.5]} 23... Qe4+ {[%clk 0:02:13.1]} 24.
Qxe4 {[%clk 0:00:55.9]} 24... Rxe4 {[%clk 0:02:14]} 25. Rad1 {[%clk 0:00:53.4]}
25... axb4 {[%clk 0:02:10.8]} 26. axb4 {[%clk 0:00:53]} 26... Ra4 {[%clk
0:02:10.6]} 27. Nc2 {[%clk 0:00:51.5]} 27... Rc4 {[%clk 0:02:06.5]} 28. Rd2
{[%clk 0:00:46.2]} 28... Ra2 {[%clk 0:02:05.7]} 29. Rc1 {[%clk 0:00:45.1]} 29...
Bb2 {[%clk 0:02:05.4]} 30. Rcd1 {[%clk 0:00:43.7]} 30... Bc3 {[%clk 0:02:01.8]}
31. Re2 {[%clk 0:00:42.1]} 31... Bxb4 {[%clk 0:01:51.8]} 32. Nxb4 {[%clk
0:00:43]} 32... Rxe2 {[%clk 0:01:51.5]} 33. Nxe2 {[%clk 0:00:43.7]} 33... Rxb4
{[%clk 0:01:51.8]} 34. Ra1 {[%clk 0:00:43.6]} 34... Rc4 {[%clk 0:01:50.8]} 35.
Ra8+ {[%clk 0:00:43.3]} 35... Kg7 {[%clk 0:01:50.7]} 36. Rd8 {[%clk 0:00:43.4]}
36... Be6 {[%clk 0:01:50.3]} 37. Nd4 {[%clk 0:00:42.2]} 37... Rxc5 {[%clk
0:01:49.9]} 38. Re8 {[%clk 0:00:37.3]} 38... Kf6 {[%clk 0:01:48.1]} 39. f4
{[%clk 0:00:34.4]} 39... b4 {[%clk 0:01:46.2]} 40. Kf3 {[%clk 0:00:33.4]} 40...
Rc3 {[%clk 0:01:44.7]} 41. g4 {[%clk 0:00:32.9]} 41... c5 {[%clk 0:01:43.8]} 42.
g5+ {[%clk 0:00:32.5]} 42... Kg7 {[%clk 0:01:44.1]} 43. Nxe6+ {[%clk 0:00:31.5]}
43... fxe6 {[%clk 0:01:45]} 44. Rxe6 {[%clk 0:00:32]} 44... d4 {[%clk
0:01:44.4]} 45. Re7+ {[%clk 0:00:31.5]} 45... Kf8 {[%clk 0:01:43.6]} 46. Re6
{[%clk 0:00:29.2]} 46... Rxe3+ {[%clk 0:01:41.8]} 47. Rxe3 {[%clk 0:00:29.3]}
47... dxe3 {[%clk 0:01:42.7]} 48. Kxe3 {[%clk 0:00:29.9]} 48... Kf7 {[%clk
0:01:43.2]} 49. Kd3 {[%clk 0:00:30.5]} 49... Ke6 {[%clk 0:01:43.4]} 50. Kc4
{[%clk 0:00:29.5]} 50... Kf5 {[%clk 0:01:43.9]} 51. Kxc5 {[%clk 0:00:29.1]}
51... b3 {[%clk 0:01:43.6]} 0-1

[Event "*** SCC Grand Prix: Titled Tuesday Blitz"]
[Site "Chess.com"]
[Date "2020.06.09"]
[Round "5"]
[White "DonBroca"]
[Black "topin8"]
[Result "0-1"]
[WhiteElo "2173"]
[BlackElo "2416"]
[TimeControl "180+1"]
[EndTime "9:55:29 PDT"]
[Termination "topin8 won by resignation"]

1. e4 {[%clk 0:00:29.3]} 1... e5 {[%clk 0:02:56.8]} 2. Nf3 {[%clk 0:00:28.5]}
2... Nc6 {[%clk 0:02:57.7]} 3. Bb5 {[%clk 0:00:28.6]} 3... Nf6 {[%clk
0:02:57.2]} 4. O-O {[%clk 0:00:28.1]} 4... Nxe4 {[%clk 0:02:57.2]} 5. Re1 {[%clk
0:00:28.7]} 5... Nd6 {[%clk 0:02:56.6]} 6. Nxe5 {[%clk 0:00:28.7]} 6... Nxe5
{[%clk 0:02:53.2]} 7. Rxe5+ {[%clk 0:00:29]} 7... Be7 {[%clk 0:02:54]} 8. Bf1
{[%clk 0:00:28.9]} 8... O-O {[%clk 0:02:53.1]} 9. d4 {[%clk 0:00:27.6]} 9... Bf6
{[%clk 0:02:50.8]} 10. Re1 {[%clk 0:00:27]} 10... Nf5 {[%clk 0:02:51.3]} 11. c3
{[%clk 0:00:26.5]} 11... d5 {[%clk 0:02:51.5]} 12. Bf4 {[%clk 0:00:25.8]} 12...
c6 {[%clk 0:02:49.5]} 13. Nd2 {[%clk 0:00:25.1]} 13... Nh4 {[%clk 0:02:49.7]}
14. h3 {[%clk 0:00:19.9]} 14... Bf5 {[%clk 0:02:35.8]} 15. Nf3 {[%clk
0:00:17.8]} 15... Ng6 {[%clk 0:02:18.1]} 16. Bh2 {[%clk 0:00:17.1]} 16... Qd7
{[%clk 0:02:18.6]} 17. Bd3 {[%clk 0:00:15.5]} 17... Rfe8 {[%clk 0:02:16.1]} 18.
Bxf5 {[%clk 0:00:13.9]} 18... Qxf5 {[%clk 0:02:17]} 19. Qd2 {[%clk 0:00:13.2]}
19... h6 {[%clk 0:02:12.2]} 20. Rxe8+ {[%clk 0:00:12.2]} 20... Rxe8 {[%clk
0:02:13]} 21. Re1 {[%clk 0:00:11.8]} 21... Re4 {[%clk 0:02:13.5]} 22. Ne5 {[%clk
0:00:08.2]} 22... Nxe5 {[%clk 0:01:56.4]} 23. dxe5 {[%clk 0:00:08.1]} 23... Bxe5
{[%clk 0:01:56.8]} 24. Rxe4 {[%clk 0:00:07.4]} 24... Qxe4 {[%clk 0:01:49.3]} 25.
Bxe5 {[%clk 0:00:08.3]} 25... Qxe5 {[%clk 0:01:50]} 26. f3 {[%clk 0:00:07.9]}
26... a6 {[%clk 0:01:43.3]} 27. Kf2 {[%clk 0:00:03.2]} 27... g5 {[%clk
0:01:41.3]} 28. Qd3 {[%clk 0:00:04.1]} 28... Kg7 {[%clk 0:01:40.8]} 29. Qd2
{[%clk 0:00:03.6]} 29... a5 {[%clk 0:01:35.2]} 30. Qd3 {[%clk 0:00:04.5]} 30...
b5 {[%clk 0:01:34.8]} 31. a4 {[%clk 0:00:05.3]} 31... bxa4 {[%clk 0:01:34.1]}
32. Qa6 {[%clk 0:00:05.3]} 32... a3 {[%clk 0:01:31.7]} 33. bxa3 {[%clk 0:00:04]}
33... Qxc3 {[%clk 0:01:31.5]} 34. Qe2 {[%clk 0:00:04.5]} 34... Qxa3 {[%clk
0:01:21.5]} 35. Qe5+ {[%clk 0:00:03.5]} 35... Kg6 {[%clk 0:01:21.9]} 36. Qd6+
{[%clk 0:00:02.8]} 36... Qxd6 {[%clk 0:01:21.6]} 0-1